Cogmind - Beta 10.2 @@@ ROGUE MODE // 2021.10.12 @ 07:29:30 Player: zapruda Result: Destroyed by G-47 Trooper with Particle Gun Performance ------------- Evolutions (1) 500 Regions Visited (5) 1000 Robots Destroyed (14) 70 Value Destroyed (324) 324 Prototype IDs (25) 500 Alien Tech Used (0) 0 Bonus (300) 300 TOTAL SCORE: 2694 Bonus ------- Aligned with FarCom 300 Cogmind --------- Core Integrity 0/400 Matter 295/300 Energy 99/100 System Corruption 3% Temperature Cool (9) Movement Core (50) Location -8/Mines Parts ------- > --- POWER (1) -------- (None) > --- PROPULSION (3) --- (None) > --- UTILITY (3) ------ Faulty Experimental Sensor Array Improved Signal Interpreter Hacking Suite > --- WEAPON (2) ------- (None) > --- INVENTORY (4) ---- Fission Core Advanced Visual Processing Unit Cloak of Protection Hacking Suite Peak State ------------ > --- POWER ------------ Improved Ion Engine > --- PROPULSION ------- Flight Unit Flight Unit Improved Flight Unit > --- UTILITY ---------- Experimental Sensor Array Improved Signal Interpreter Hacking Suite > --- WEAPON ----------- Heavy Hammer > --- INVENTORY -------- Improved Heat Sink Weight Redist. System Hacking Suite EMP Blaster [Rating: 21] Favorites ----------- Power Ion Engine Engine Ion Engine Propulsion Flight Unit Treads Light Treads Leg Aluminum Leg Flight Unit Flight Unit Utility Hacking Suite Device Experimental Sensor Array Storage Small Storage Unit Processor Improved Signal Interpreter Hackware Hacking Suite Weapon Heavy Hammer Energy Gun Medium Laser Ballistic Gun Light Assault Rifle Launcher EMP Blaster Impact Weapon Heavy Hammer Build | -11 -10 -9 -9 -9 -8 ------- Run | Scr Mat Mat Min Exi Min Slots Evolved 2 | . . 2 . . . Power . | . . . . . . Propulsion 1 | . . 1 . . . Utility 1 | . . 1 . . . Weapon . | . . . . . . Parts Attached 25 | . 13 10 2 . . Power 2 | . 1 1 . . . Engine 2 | . 1 1 . . . Core . | . . . . . . Reactor . | . . . . . . Propulsion 9 | . 4 5 . . . Treads 2 | . . 2 . . . Leg . | . . . . . . Wheel . | . . . . . . Hover . | . . . . . . Flight 7 | . 4 3 . . . Utility 9 | . 4 4 1 . . Device 6 | . 3 2 1 . . Storage . | . . . . . . Processor 2 | . 1 1 . . . Hackware 1 | . . 1 . . . Protection . | . . . . . . Artifact . | . . . . . . Weapon 5 | . 4 . 1 . . Energy Gun . | . . . . . . Energy Cannon . | . . . . . . Ballistic Gun 1 | . 1 . . . . Ballistic Cannon . | . . . . . . Launcher 1 | . . . 1 . . Special Weapon . | . . . . . . Impact Weapon 3 | . 3 . . . . Slashing Weapon . | . . . . . . Piercing Weapon . | . . . . . . Special Melee Weapon . | . . . . . . Unidentified Prototypes 2 | . 1 . 1 . . Parts Lost 11 | . . 6 5 . . Power 2 | . . 1 1 . . Propulsion 7 | . . 4 3 . . Utility . | . . . . . . Weapon 2 | . . 1 1 . . Highest Loss Streak 5 | . . 3 5 . . Average Slot Usage (%) 56 | . 95 93 54 33 33 Engine 4 | . 14 10 3 . . Treads 1 | . . 10 . . . Flight 8 | . 24 18 12 . . Device 10 | . 9 11 11 11 11 Processor 11 | . 13 11 11 11 11 Hackware 8 | . . 10 11 11 11 Ballistic Gun 3 | . 17 . . . . Impact Weapon 4 | . 5 20 4 . . Naked Turns . | . . . . . . Heaviest Build 14 | 12 12 14 11 1 1 Greatest Support 40 | 20 20 40 14 3 3 Greatest Overweight (x) 4 | . 2 4 . . . Average Overweight (x) . | . . . . . . Largest Inventory Capacity 6 | . 6 4 4 4 4 Average Capacity 4 | . 4 4 4 4 4 Most Carried 6 | . 6 4 4 4 4 Average Carried 3 | . 3 3 3 4 4 Final Capacity 6 | 6 4 4 4 4 4 Final Carried 6 | 6 4 4 4 4 4 Class Distribution -------------------- 50% | Scout 31% | Mutant 11% | Sprinter 6% | Scavenger-Mutant Dominant Class ---------------- Mutant | -10/Materials Scavenger-Mutant | -9/Materials Mutant | -9/Mines Mutant | -9/Exiles Scout | -8/Mines Resources | -11 -10 -9 -9 -9 -8 ----------- Run | Scr Mat Mat Min Exi Min Matter Collected 492 | 200 91 161 20 . 20 Remotely . | . . . . . . Salvage Created 448 | . 287 161 . . . Parts 34 | . 24 10 . . . Haulers Intercepted 1 | . 1 . . . . Recyclers Shooed 1 | . 1 . . . . Parts Field Recycled . | . . . . . . Retrieved Matter . | . . . . . . Parts Self-Destructed . | . . . . . . Prevented . | . . . . . . Kills | -11 -10 -9 -9 -9 -8 ------- Run | Scr Mat Mat Min Exi Min Combat Hostiles Destroyed 9 | . 6 3 . . . Melee 2 | . . 2 . . . Guns 6 | . 6 . . . . Classes Destroyed 7 | . 6 1 . . . Builder 1 | . 1 . . . . Hauler 1 | . 1 . . . . Operator 2 | . 1 1 . . . Watcher 1 | . 1 . . . . Swarmer 3 | . 3 . . . . Grunt 4 | . 3 1 . . . Sentry 2 | . . 2 . . . Best Kill Streak 4 | . 4 1 . . . Combat Bots Only 3 | . 3 1 . . . Max Kills in Single Turn 1 | . 1 1 . . . Gunslinging . | . . . . . . Exploded . | . . . . . . Melee 1 | . . 1 . . . Uniques/NPCs Destroyed . | . . . . . . Combat | -11 -10 -9 -9 -9 -8 -------- Run | Scr Mat Mat Min Exi Min Damage Taken 1271 | . 224 716 266 . 65 Core 437 | . 33 184 173 . 47 Absorbed by Shields . | . . . . . . Core Remaining (%) 93 | 100 86 . . . . Volleys Fired 40 | . 40 . . . . Largest 2 | . 2 . . . . Hottest 70 | . 70 . . . . Shots Fired 80 | . 80 . . . . Gun 80 | . 80 . . . . Cannon . | . . . . . . Launcher . | . . . . . . Special . | . . . . . . Kinetic 72 | . 72 . . . . Thermal 8 | . 8 . . . . Explosive . | . . . . . . Electromagnetic . | . . . . . . Robot Hit Streak 4 | . 4 . . . . Robot Miss Streak 5 | . 5 . . . . Penetration Max . | . . . . . . Secondary Targets . | . . . . . . Shots Hit Robots 72 | . 41 31 . . . Core Hits 24 | . 17 5 1 . 1 Critical Hits . | . . . . . . Critical Kills . | . . . . . . Critical Parts Destroyed . | . . . . . . Melee Attacks 58 | . 9 47 2 . . Impact 58 | . 9 47 2 . . Slashing . | . . . . . . Piercing . | . . . . . . Sneak Attacks 3 | . 1 2 . . . Combat Hostiles . | . . . . . . Follow-up Attacks 7 | . . 7 . . . Damage Inflicted 1277 | . 448 820 6 . 3 Guns 372 | . 372 . . . . Cannons . | . . . . . . Explosions . | . . . . . . Melee 896 | . 76 820 . . . Ramming 9 | . . . 6 . 3 Kinetic 323 | . 323 . . . . Thermal 49 | . 49 . . . . Explosive . | . . . . . . Electromagnetic . | . . . . . . Impact 896 | . 76 820 . . . Slashing . | . . . . . . Piercing . | . . . . . . Highest Corruption 3 | . . 3 3 3 3 Average Corruption 2 | . . 2 3 3 3 Corruption Purged . | . . . . . . Effects 20 | . . 2 2 3 13 Message Errors 6 | . . . . 2 4 Matter Fused 4 | . . . 1 1 2 Heat Flow Errors 4 | . . 1 . . 3 Energy Discharges 5 | . . 1 1 . 3 Data Loss (minor) 1 | . . . . . 1 Overload Shots . | . . . . . . Overflow Damage 110 | . 30 80 . . . Projectiles . | . . . . . . Explosions . | . . . . . . Melee 110 | . 30 80 . . . Knockbacks 2 | . . 2 . . . Impact 2 | . . 2 . . . Kinetic . | . . . . . . Secondary . | . . . . . . Self-Inflicted Damage 4 | . . . 3 . 1 Shots . | . . . . . . Rammed 2 | . . . 1 . 1 Targets Rammed 2 | . . . 1 . 1 Kicked . | . . . . . . Crushed . | . . . . . . Highest Temperature 267 | . 215 267 . . 239 Average Temperature 117 | . 114 142 . . 104 Received Heat Transfer 459 | . 90 333 . . 36 Siege Activations . | . . . . . . Robots Corrupted . | . . . . . . Combat Hostiles . | . . . . . . Parts Fried 3 | . 3 . . . . Impact Corruptions 8 | . 2 6 . . . Robots Melted . | . . . . . . Combat Hostiles . | . . . . . . Parts Melted 1 | . . 1 . . . Heat Transferred 148 | . 148 . . . . Parts Sabotaged . | . . . . . . Parts Stolen . | . . . . . . Parts Stripped . | . . . . . . Power Chain Reactions . | . . . . . . Missiles Intercepted . | . . . . . . Alert | -11 -10 -9 -9 -9 -8 ------- Run | Scr Mat Mat Min Exi Min Peak Influence 209 | . 209 121 105 . . Initial 46 | . . 5 46 . . Average 39 | . 125 55 40 . . Maximum Alert Level 1 | . 1 . . . . Low Security (%) 98 | . 91 100 100 . 100 Level 1 1 | . 8 . . . . Level 2 . | . . . . . . Level 3 . | . . . . . . Level 4 . | . . . . . . Level 5 . | . . . . . . High Security . | . . . . . . Max Security . | . . . . . . Squads Dispatched 3 | . 1 2 . . . Investigation . | . . . . . . Extermination . | . . . . . . Reinforcement 3 | . 1 2 . . . Assault . | . . . . . . Garrison . | . . . . . . Intercept . | . . . . . . Construction Impeded 1 | . . 1 . . . Haulers Reinforced . | . . . . . . Stealth | -11 -10 -9 -9 -9 -8 --------- Run | Scr Mat Mat Min Exi Min Distress Signals 4 | . 2 2 . . . Communications Jammed . | . . . . . . Distress Signals . | . . . . . . Times Spotted 42 | . 18 11 8 . 5 Peak Tracking Total 6 | . 4 4 5 . 6 Tactical Retreats 5 | . . 2 3 . . Traps | -11 -10 -9 -9 -9 -8 ------- Run | Scr Mat Mat Min Exi Min Traps Triggered 3 | . 1 2 . . . Indirectly . | . . . . . . Trap Hack Attempts . | . . . . . . Triggered . | . . . . . . Disarmed . | . . . . . . Reprogrammed . | . . . . . . Reused . | . . . . . . Traps Extracted . | . . . . . . Installed . | . . . . . . Triggered . | . . . . . . Machines | -11 -10 -9 -9 -9 -8 ---------- Run | Scr Mat Mat Min Exi Min Machines Disabled . | . . . . . . Max in Single Turn . | . . . . . . Machines Sabotaged . | . . . . . . Garrisons Compromised . | . . . . . . Overloaded Fab Kills . | . . . . . . Fab Network Shutdowns . | . . . . . . Hacking | -11 -10 -9 -9 -9 -8 --------- Run | Scr Mat Mat Min Exi Min Machines Accessed 4 | . 2 1 . 1 . Terminals 2 | . 2 . . . . Fabricators . | . . . . . . Repair Stations . | . . . . . . Recycling Units . | . . . . . . Scanalyzers 1 | . . 1 . . . Garrison Access . | . . . . . . Total Hacks 7 | . 4 2 . 1 . Successful 7 | . 4 2 . 1 . Failed . | . . . . . . Catastrophic . | . . . . . . Database Lockouts . | . . . . . . Manual 1 | . . . . 1 . Terminals 4 | . 4 . . . . Fabricators . | . . . . . . Repair Stations . | . . . . . . Recycling Units . | . . . . . . Scanalyzers 2 | . . 2 . . . Garrison Access . | . . . . . . Terminal Hacks 5 | . 4 . . 1 . Alert Level 1 | . 1 . . . . Hauler Manifests 1 | . 1 . . . . Zone Layout 2 | . 2 . . . . EX-Prototype ID Bank 1 | . . . . 1 . Fabricator Hacks . | . . . . . . Repair Station Hacks . | . . . . . . Recycling Unit Hacks . | . . . . . . Scanalyzer 2 | . . 2 . . . Insert Component 1 | . . 1 . . . Analyze 1 | . . 1 . . . Garrison Access Hacks . | . . . . . . Unauthorized Hacks . | . . . . . . Terminals . | . . . . . . Fabricators . | . . . . . . Repair Stations . | . . . . . . Recycling Units . | . . . . . . Scanalyzers . | . . . . . . Garrison Access . | . . . . . . Data Cores Recovered . | . . . . . . Used . | . . . . . . Hacking Detections . | . . . . . . Full Trace Events . | . . . . . . Feedback Events . | . . . . . . Feedback Blocked . | . . . . . . Robot Schematics Acquired . | . . . . . . Robots Built . | . . . . . . Matter . | . . . . . . Time . | . . . . . . Total Robot Build Rating . | . . . . . . Part Schematics Acquired 1 | . . 1 . . . Parts Built . | . . . . . . Matter . | . . . . . . Time . | . . . . . . Total Part Build Rating . | . . . . . . Parts Repaired . | . . . . . . Time . | . . . . . . Parts Recycled . | . . . . . . Recycled Matter . | . . . . . . Retrieved Matter . | . . . . . . Retrieved Components . | . . . . . . Parts Scanalyzed 1 | . . 1 . . . Part Schematics Acquired 1 | . . 1 . . . Parts Damaged . | . . . . . . Bothacking | -11 -10 -9 -9 -9 -8 ------------ Run | Scr Mat Mat Min Exi Min Used RIF Installer . | . . . . . . Robots Hacked . | . . . . . . Non-combat . | . . . . . . Combat . | . . . . . . Robot Hacks Applied . | . . . . . . Relay Couplers Released . | . . . . . . Robots Rewired . | . . . . . . Allies Hacked . | . . . . . . Hacks Repelled . | . . . . . . Allies | -11 -10 -9 -9 -9 -8 -------- Run | Scr Mat Mat Min Exi Min Total Allies . | . . . . . . Largest Group . | . . . . . . Highest-Rated Group . | . . . . . . Highest-Rated Ally . | . . . . . . Total Orders . | . . . . . . Ally Attacks . | . . . . . . Total Damage . | . . . . . . Kills . | . . . . . . Allies Corrupted . | . . . . . . Allies Melted . | . . . . . . Intel | -11 -10 -9 -9 -9 -8 ------- Run | Scr Mat Mat Min Exi Min Robot Analysis Total . | . . . . . . Derelict Logs Recovered 1 | . . . 1 . . Drone Launches . | . . . . . . Drone Recoveries . | . . . . . . Exploration | -11 -10 -9 -9 -9 -8 ------------- Run | Scr Mat Mat Min Exi Min Turns Passed 2030 | . 415 323 135 120 1037 Spaces Moved 1858 | 1 566 253 295 237 506 Core 907 | . 1 5 158 237 506 Treads 60 | . . 60 . . . Legs 37 | 1 36 . . . . Wheels . | . . . . . . Hover . | . . . . . . Flight 854 | . 529 188 137 . . Fastest Speed 29 | 120 32 29 32 50 50 Average Speed 48 | 120 42 67 41 50 50 Slowest Speed 280 | 120 200 280 50 50 50 Overloaded Moves . | . . . . . . Propulsion Burnouts . | . . . . . . Robots Hopped . | . . . . . . Cave-ins Triggered . | . . . . . . Exploration Rate (%) 52 | 2 88 27 58 61 77 Regions Visited 5 Branch Regions 3 Pre-discovered Areas . | . . . . . . Known Exits Taken 4 | . 1 1 1 1 . Unknown Exits Taken 1 | 1 . . . . . Scrap Searched 3 | . . . 1 . 2 Spaces Dug 10 | . 2 6 2 . . Terrain Destroyed 10 | . 2 6 2 . . Melee 10 | . 2 6 2 . . Projectile . | . . . . . . AOE . | . . . . . . Terrain Rammed . | . . . . . . Walls Destroyed . | . . . . . . Machines Disabled . | . . . . . . Actions | -11 -10 -9 -9 -9 -8 --------- Run | Scr Mat Mat Min Exi Min Total 2810 | . 661 318 303 238 1290 Wait 803 | . 12 13 . . 778 Move 1853 | . 565 252 294 236 506 Hop . | . . . . . . Pick Up 13 | . 7 3 1 1 1 Fast Attach 13 | . 7 5 1 . . Attach 7 | . 4 2 1 . . Detach 4 | . 3 . 1 . . Swap 5 | . 2 3 . . . Drop 19 | . 14 1 2 1 1 Fire 40 | . 40 . . . . Melee 48 | . 7 39 2 . . Ram 2 | . . . 1 . 1 Kick . | . . . . . . Crush . | . . . . . . Escape Stasis . | . . . . . . Rewire 3 | . . . . . 3 Trap . | . . . . . . Miscellaneous . | . . . . . . Route ------- -11/Scrapyard -10/Materials (discovered 4 exits: *Mat x3 / [*Min]) -9/Materials (discovered 2 exits: *Min / *Sto) -9/Mines (discovered 3 exits: *Mat x2 / *Exi) -9/Exiles -8/Mines History --------- Turn | Location | Event 1 | -11/Scrapyard | Discovered new exit (range 0) 1 | -11/Scrapyard | Entered Materials 237 | -10/Materials | Discovered new exit (range 9) 275 | -10/Materials | Discovered new exit (range 16) 287 | -10/Materials | Discovered new exit (range 7) 323 | -10/Materials | Identified exit to Materials 328 | -10/Materials | Build established: Mutant 367 | -10/Materials | Discovered exit to Materials (range 18) 416 | -10/Materials | Entered another Materials area 416 | -9/Materials | Evolved 2 slots: Propulsion x1, Utility x1 444 | -9/Materials | Discovered new exit (range 3) 497 | -9/Materials | Identified exit to Storage 523 | -9/Materials | Lost 3 parts (1p2n) 577 | -9/Materials | Discovered new exit (range 11) 593 | -9/Materials | Met 8R-AWN 598 | -9/Materials | Identified exit to Mines 739 | -9/Materials | Entered Mines 740 | -9/Mines | Followed 8R-AWN into the Mines 760 | -9/Mines | Discovered new exit (range 12) 764 | -9/Mines | Assembled infested the area 765 | -9/Mines | Identified exit to Materials 769 | -9/Mines | Assisted by a Guerilla fighting off Assembled 779 | -9/Mines | Identified exit to Exiles 781 | -9/Mines | Found a damaged Exp. Sensor Array with a note attached 782 | -9/Mines | Found Prototype Device 782 | -9/Mines | Identified Exp. Sensor Array 790 | -9/Mines | Core integrity fell below 50% 794 | -9/Mines | Core integrity fell below 20% 804 | -9/Mines | Discovered exit to Materials (range 9) 822 | -9/Mines | Lost 5 parts (1p3n1w) 874 | -9/Mines | Entered Exiles 887 | -9/Exiles | Welcomed by 8R-AWN 895 | -9/Exiles | Met EX-HEX 909 | -9/Exiles | Met EX-BIN 917 | -9/Exiles | Aligned with FarCom system 918 | -9/Exiles | Given EX-Vault access code 930 | -9/Exiles | Opened EX-Vault 934 | -9/Exiles | Found Cloak of Protection 946 | -9/Exiles | Warned to stay clear of 0b10 Research branches 960 | -9/Exiles | Met EX-DEC 977 | -9/Exiles | Discovered new exit (range 14) 983 | -9/Exiles | Identified exit to Mines 994 | -9/Exiles | Left Exiles lab with Cloak of Protection 994 | -9/Exiles | Entered Mines 1293 | -8/Mines | Build established: Scout 2031 | -8/Mines | Destroyed by G-47 Trooper with Particle Gun Last Messages --------------- 01165_ T-07 Excavator is broken beyond repair. 01166_ Attempting to rewire T-07 Excavator. 01166_ T-07 Excavator is broken beyond repair. 01167_ Attempting to rewire T-07 Excavator. 01167_ T-07 Excavator is broken beyond repair. 01167_ K-01 Serf collects debris. 01249_ System corrupted: Component data lost. 01263_ K-01 Serf collects debris. 01275_ R/FF,YDEU/8JO%YSH|FON 01277_ K-01 Serf collects debris. 01298_ System corrupted: Energy discharge (-21). 01351_ G%DUGARK4JHVB9QUCNVHCC 01412_ System corrupted: Heat flow error (+215). 01442_ System corrupted: Heat flow error (+267). 01500_ System corrupted: Energy discharge (-23). 01626_ R#A5WC3FHDD4MDCLCRU#5UE17< 01702_ Acquired 4 matter. 01714_ System corrupted: Energy discharge (-34). 01892_ FYLJ XBZYJEF 02000_ System corrupted: Heat flow error (+126). Map ----- +----------------------------------------------------+ | ?????????# #?????????#####??????# !#? | | #????????# #????????## ##?????# ### #? | | ###??????# #????##### ##????## ### #?# #? | | ##?????# #????# #?????# #?#####?# #? | | #?????# #????# #### ####### #???????## ##? | | ####### ####?# #??## # #????????####?? | | #?# #???## #?????????????? | | ### #????# #####?????????????? | | #########!!! #????## #?????????????????? | | ##???????# %#####?????## ##?????????????????? | | ##????????# #??????????######??????????????????? | | ##????????# #??????????????????????????????????? | | #####????# #??????????????????????????????????? | | ###### #??????????????????????????????????? | | #??????????????????????????????????? | | # ##### b##?????????????????????????????????? | | ## #???# ##????????????????????????????????? | | ?# ##???# ##???????????????????????????????? | | ?## ##???## g##??????????????????????????????? | | ??# #????# k g ###???####?????????????????????? | | ??# ##???# ##### ##????????????????????? | | ??# ##??# #????????????????????? | | ###% #### ## #????????????????????? | | !%! ## #### ##????????????????????? | | #### ##??## ##?????????????????????? | | ???# ##????##### @#??????????????????????? | | ???## ##?????????# #??????????????????????? | | ????### #??????????# #??????????????????????? | | ###???## g##????????? ??????????????????????? | | #????# #???????? ?????????????????????? | | #???## g #??????? ????????????????????? | | #??## b #??????? ???????????????????? | | #?## ##??????## ??????????????????? | | #?# """ ##????????## ??????????????????? | | ### """ #??????????## ???????????????????? | | #### """ #???????????## ?????????????????????? | | ##????????????# ????????????????????? | | #????????????? ????????????????????? | | # #????????????? ????????????????????? | | # #### #????????????? ????????????????????? | | ## ##??## ##???????????? ?????????????????????? | | ?####????# ##??????????????????????????????????? | | ????????## ##?????????????????????????????????? | | ????????# #?????????????????????????????????? | | ????????# #?????????????????????????????????? | | ????????# #?????????????????????????????????? | | ????????## ##?????????????????????????????????? | | ?????????## ##??????????????????????????????????? | | ??????????####???????????????????????????????????? | | ?????????????????????????????????????????????????? | +----------------------------------------------------+ Best States ------------- Heat Dissipation 39 Energy Generation 12 Energy Capacity 265 Matter Stores 300 Matter Capacity 300 Sight Range 16 Terrain Scan Density 10 Additional Mass Support 6 Evasion (%) 64 Recoil Reduction 2 Offensive Hacking 10 Item Schematics ----------------- Hacking Suite | -9/Materials | Scanalyzed Robot Schematics ------------------ None Fabricated ------------ Nothing Alien Tech Used ----------------- None Achievements -------------- None Challenges ------------ None Game ------ Seed InsulatedStasisMaul Manual? 0 Play Time 00:20:39 Cumulative 58.4 hours Start 2021.10.12 @ 07:12:43 End 2021.10.12 @ 07:29:30 Sessions 1 Manual Loads 0 Difficulty Rogue Special Mode None Game No. 92 Rogue 92 Adventurer 0 Explorer 0 Win Type - Total 0 Types 0/0/0/0/0/0/0/0/0 Lore% 29 Gallery% 48 Achievement% 31 Wizard Run 0 Options --------- ASCII 0 Keyboard 0 Movement Mouse Keybinds 0 Fullscreen 1 Font 18/SmallcapsGlow Map View 76x50 Tactical HUD 1 Map Filters NONE Filters NONE Steam 1 RUN: 813254a9-b470-492c-8da4-2c4c68e5a4dd